{"text_format":"1","workbook":"xlsx","n_sheets":2,"sheets":["Лист1","Лист2"],"not_rendered":{"charts":0,"images":0,"macros":1,"external_links":0,"defined_names":0,"comments":0,"pivot_tables":0},"unopened":[],"bounds":{"document_bytes":16777216,"sheet_cells":100000,"rows_first":2000,"rows_last":500,"rows_between":2000,"halvings":0,"cell_chars":16384,"cell_head_chars":4096},"cells_cut":0,"cells_raw":0,"read":"whole","date_system":"1900"}

{"sheet":"Лист1","index":0,"n_rows":41,"n_cols":3,"rows_kept":41,"cut":false,"hidden":false,"merged":[]}
[]
[null,"Номер","Полное название"]
[null,"115001????????","ВГБЛ 1 \"Победа\"  код 115, коммерческое наименование \"Морской бой\""]
[null,"931004????????","ВГБЛ 1 \"Победа\"  код 115, коммерческое наименование \"Морской бой\""]
[null,"117001????????","ВГБЛ 1 \"Победа\"  код 117 , коммерческое наименование \"Русское казино\""]
[null,"220010????????","ВГБЛ 1 \"Победа\"  код 220, коммерческое наименование  \"10 звезд\""]
[null,"930006????????","ВГБЛ 1 \"Победа\"  код 220, коммерческое наименование  \"10 звезд\""]
[null,"118001????????","ВГБЛ 1 \"Победа\" код 118, коммерческое наименование  \"СуперАвтокуш\""]
[null,"110001????????","ВГБЛ 2 \"Победа\"  код 110, коммерческое наименование  \"6 из 36\""]
[null,"111001????????","ВГБЛ 2 \"Победа\"  код 111, коммерческое наименование  \"Кроссворд\""]
[null,"112001????????","ВГБЛ 2 \"Победа\"  код 112, коммерческое наименование  \"Большое путешествие\""]
[null,"113001????????","ВГБЛ 2 \"Победа\"  код 113, коммерческое наименование  \"Автокуш\""]
[null,"931003????????","ВГБЛ 2 \"Победа\"  код 113, коммерческое наименование  \"Автокуш\""]
[null,"931019????????","ВГБЛ 2 \"Победа\",код 931,  коммерческое наименование  \"70 лет Великой Победы\""]
[null,"109001????????","ВГБЛ 3  \"Победа\" код 109, коммерческое наименование \"Скачки\""]
[null,"931011????????","ВГБЛ 3  \"Победа\" код 109, коммерческое наименование \"Скачки\""]
[null,"203001????????","ВГБЛ 3 \"Победа\"   код 203, коммерческое наименование  \"Путешествие\""]
[null,"203002????????","ВГБЛ 3 \"Победа\"   код 203, коммерческое наименование  \"Путешествие\""]
[null,"932009????????","ВГБЛ 3 \"Победа\"   код 203, коммерческое наименование  \"Путешествие\""]
[null,"93202407??????","ВГБЛ 3 \"Победа\"   код 203, коммерческое наименование  \"Путешествие\""]
[null,"108001????????","ВГБЛ 3 \"Победа\"  код 108, коммерческое наименование \"Крестики нолики\""]
[null,"931008????????","ВГБЛ 3 \"Победа\"  код 108, коммерческое наименование \"Крестики нолики\""]
[null,"931013????????","ВГБЛ 3 \"Победа\"  код 108, коммерческое наименование \"Крестики нолики\""]
[null,"931023????????","ВГБЛ 3 \"Победа\"  код 108, коммерческое наименование \"Крестики нолики\""]
[null,"107001????????","ВГБЛ 3 \"Победа\" код 107, коммерческое наимнование  \"Гороскоп\""]
[null,"931007????????","ВГБЛ 3 \"Победа\" код 107, коммерческое наимнование  \"Гороскоп\""]
[null,"201001????????","ВГБЛ 4 \"Победа\"  код  201, коммерческое наименование  \"Спринт Лото\""]
[null,"201002????????","ВГБЛ 4 \"Победа\"  код  201, коммерческое наименование  \"Спринт Лото\""]
[null,"932000????????","ВГБЛ 4 \"Победа\"  код  201, коммерческое наименование  \"Спринт Лото\""]
[null,"932010????????","ВГБЛ 4 \"Победа\"  код  201, коммерческое наименование  \"Спринт Лото\""]
[null,"105001????????","ВГБЛ 4 \"Победа\"  код 105, коммерческое наименование\"Чемпион\""]
[null,"931002????????","ВГБЛ 4 \"Победа\"  код 105, коммерческое наименование\"Чемпион\""]
[null,"116001????????","ВГБЛ 5 \"Победа\"  код 116, коммерческое наименование \"Бинго\""]
[null,"190010????????","ВГБЛ 6 \"Победа\"   код  019, коммерческое наименование  \"50/50\""]
[null,"930005????????","ВГБЛ 6 \"Победа\"   код  019, коммерческое наименование  \"50/50\""]
[null,"200010????????","ВГБЛ 6 \"Победа\"  код 020, коммерческое наименование  \"Стрелок\""]
[null,"930001????????","ВГБЛ 6 \"Победа\"  код 020, коммерческое наименование  \"Стрелок\""]
[null,"106001????????","ВГБЛ 7 \"Победа\"  код 106, коммерческое наименование  \"Золотая лихорадка\""]
[null,"931012????????","ВГБЛ 7 \"Победа\"  код 106, коммерческое наименование  \"Золотая лихорадка\""]
[null,"931021????????","ВГБЛ 7 \"Победа\"  код 106, коммерческое наименование  \"Золотая лихорадка\""]
[null,"932014????????","ВГБЛ 7 \"Победа\", код 932,  коммерческое наименование  \"Русский Спринт\""]

{"sheet":"Лист2","index":1,"n_rows":45,"n_cols":13,"rows_kept":45,"cut":false,"hidden":false,"merged":[]}
[]
[]
[]
[]
[null,"Очистить табличку Ctrl + Z"]
[null,".","Дата","Название","Номер","Сумма",null,30,null,"Дата","Название","Номер","Сумма"]
[null,{"$f":"RAND()","v":0.48459506469306435},null,"ВГБЛ 7 \"Победа\"  код 106, коммерческое наименование  \"Золотая лихорадка\"",9310123195431,5000,null,null,null,null,"ВГБЛ 7 \"Победа\"  код 106, коммерческое наименование  \"Золотая лихорадка\"",9310123650114,30]
[null,{"$f":"RAND()","v":0.76362138901335419},null,"ВГБЛ 2 \"Победа\"  код 113, коммерческое наименование  \"Автокуш\"",11300100330451,5000]
[null,{"$f":"RAND()","v":0.82093985035474581},null,"ВГБЛ 7 \"Победа\"  код 106, коммерческое наименование  \"Золотая лихорадка\"",9310212290276,1000]
[null,{"$f":"RAND()","v":0.27682964947011257},null,"ВГБЛ 7 \"Победа\"  код 106, коммерческое наименование  \"Золотая лихорадка\"",9310210241904,1000]
[null,{"$f":"RAND()","v":9.468484686490386E-2},null,"ВГБЛ 6 \"Победа\"  код 020, коммерческое наименование  \"Стрелок\"",2000100144779,600]
[null,{"$f":"RAND()","v":0.8801288113616873},null,"ВГБЛ 6 \"Победа\"  код 020, коммерческое наименование  \"Стрелок\"",2000100468440,300]
[null,{"$f":"RAND()","v":0.69185111246832365},null,"ВГБЛ 7 \"Победа\"  код 106, коммерческое наименование  \"Золотая лихорадка\"",9310123195721,250]
[null,{"$f":"RAND()","v":1.510485505502368E-3},null,"ВГБЛ 6 \"Победа\"  код 020, коммерческое наименование  \"Стрелок\"",2000100463515,250]
[null,{"$f":"RAND()","v":0.98931603993384498},null,"ВГБЛ 6 \"Победа\"  код 020, коммерческое наименование  \"Стрелок\"",2000100467120,150]
[null,{"$f":"RAND()","v":0.93679117436157933},null,"ВГБЛ 7 \"Победа\"  код 106, коммерческое наименование  \"Золотая лихорадка\"",9310123195127,100]
[null,{"$f":"RAND()","v":0.55673551851016445},null,"ВГБЛ 2 \"Победа\"  код 113, коммерческое наименование  \"Автокуш\"",11300100189261,50]
[null,{"$f":"RAND()","v":0.28497971313385517},null,"ВГБЛ 2 \"Победа\"  код 113, коммерческое наименование  \"Автокуш\"",11300100189285,50]
[null,{"$f":"RAND()","v":0.14379121086767466},null,"ВГБЛ 2 \"Победа\"  код 113, коммерческое наименование  \"Автокуш\"",11300100330430,50]
[null,{"$f":"RAND()","v":0.70862125361273443},null,"ВГБЛ 2 \"Победа\"  код 113, коммерческое наименование  \"Автокуш\"",11300100330412,50]
[null,{"$f":"RAND()","v":0.89328944480749983},null,"ВГБЛ 2 \"Победа\"  код 113, коммерческое наименование  \"Автокуш\"",11300100330594,50]
[null,{"$f":"RAND()","v":0.48956478134237746},null,"ВГБЛ 2 \"Победа\"  код 113, коммерческое наименование  \"Автокуш\"",11300100330593,50]
[null,{"$f":"RAND()","v":0.19827985785007951},null,"ВГБЛ 6 \"Победа\"  код 020, коммерческое наименование  \"Стрелок\"",2000100401130,50]
[null,{"$f":"RAND()","v":0.31712002891756064},null,"ВГБЛ 6 \"Победа\"  код 020, коммерческое наименование  \"Стрелок\"",2000100144793,50]
[null,{"$f":"RAND()","v":0.59471471184786395},null,"ВГБЛ 6 \"Победа\"  код 020, коммерческое наименование  \"Стрелок\"",2000100144759,50]
[null,{"$f":"RAND()","v":0.24535611612346719},null,"ВГБЛ 6 \"Победа\"  код 020, коммерческое наименование  \"Стрелок\"",2000100463509,50]
[null,{"$f":"RAND()","v":0.19375245558670373},null,"ВГБЛ 6 \"Победа\"  код 020, коммерческое наименование  \"Стрелок\"",2000100463530,50]
[null,{"$f":"RAND()","v":0.14842790865747968},null,"ВГБЛ 6 \"Победа\"  код 020, коммерческое наименование  \"Стрелок\"",2000100463599,50]
[null,{"$f":"RAND()","v":0.13683159608610873},null,"ВГБЛ 6 \"Победа\"  код 020, коммерческое наименование  \"Стрелок\"",2000100125251,50]
[null,{"$f":"RAND()","v":7.8168508376794454E-2},null,"ВГБЛ 6 \"Победа\"  код 020, коммерческое наименование  \"Стрелок\"",2000100466896,50]
[null,{"$f":"RAND()","v":0.91746485705216207},null,"ВГБЛ 6 \"Победа\"  код 020, коммерческое наименование  \"Стрелок\"",2000100468700,50]
[null,{"$f":"RAND()","v":0.23349051770619911},null,"ВГБЛ 6 \"Победа\"  код 020, коммерческое наименование  \"Стрелок\"",2000100467963,50]
[null,{"$f":"RAND()","v":0.38311432712442028}]
[null,{"$f":"RAND()","v":0.64774715900933655},null,"ВГБЛ 7 \"Победа\"  код 106, коммерческое наименование  \"Золотая лихорадка\"",9310123195455,30]
[null,{"$f":"RAND()","v":0.3903407192640016},null,"ВГБЛ 7 \"Победа\"  код 106, коммерческое наименование  \"Золотая лихорадка\"",9310123195905,30]
[null,{"$f":"RAND()","v":0.22536692757308974},null,"ВГБЛ 7 \"Победа\"  код 106, коммерческое наименование  \"Золотая лихорадка\"",9310123195813,30]
[null,{"$f":"RAND()","v":0.92525745288876082},null,"ВГБЛ 7 \"Победа\"  код 106, коммерческое наименование  \"Золотая лихорадка\"",9310123192461,30]
[null,{"$f":"RAND()","v":0.98094584691487008},null,"ВГБЛ 7 \"Победа\"  код 106, коммерческое наименование  \"Золотая лихорадка\"",9310123195899,30]
[null,{"$f":"RAND()","v":0.99875326917942064},null,"ВГБЛ 7 \"Победа\"  код 106, коммерческое наименование  \"Золотая лихорадка\"",9310123195851,30]
[null,{"$f":"RAND()","v":0.6498684238924638},null,"ВГБЛ 7 \"Победа\"  код 106, коммерческое наименование  \"Золотая лихорадка\"",9310123195639,30]
[null,{"$f":"RAND()","v":4.4907405277893497E-2},null,"ВГБЛ 7 \"Победа\"  код 106, коммерческое наименование  \"Золотая лихорадка\"",9310123195318,30]
[null,{"$f":"RAND()","v":0.8992257789884206},null,"ВГБЛ 7 \"Победа\"  код 106, коммерческое наименование  \"Золотая лихорадка\"",9310123195158,30]
[null,{"$f":"RAND()","v":6.6669094982637511E-2},null,"ВГБЛ 7 \"Победа\"  код 106, коммерческое наименование  \"Золотая лихорадка\"",9310212290214,30]
[null,{"$f":"RAND()","v":0.38169883648144654},null,"ВГБЛ 7 \"Победа\"  код 106, коммерческое наименование  \"Золотая лихорадка\"",9310210241935,30]
[null,{"$f":"RAND()","v":0.39766609628930993},null,"ВГБЛ 7 \"Победа\"  код 106, коммерческое наименование  \"Золотая лихорадка\"",9310210242031,30]